[Event "34th GER-ch Seniors-65 2022"]
[Site "Magdeburg"]
[Date "2022.08.14"]
[Round "3.7"]
[White "Kuhn, Gerd"]
[Black "Koehler, Gerhard"]
[Result "1-0"]
[ECO "A45"]
[WhiteElo "2049"]
[BlackElo "2184"]
[Annotator "TA"]
[PlyCount "69"]
[EventDate "2022.08.12"]
[EventType "swiss"]
[EventCountry "GER"]
[SourceTitle "playchess.com"]
[Source "ChessBase"]
[SourceQuality "1"]
[TimeControl "40/5400+30:1800+30"]

{[%evp 13,69,0,0,-14,-27,-18,-33,-8,-25,-41,0,-62,-41,-43,32,28,119,129,131,141,1791,1784,29987,29988,29988,217,29989,29990,29992,1170,961,641,1507,465,443,270,449,457,825,796,1261,1255,29986,1739,1993,1772,2251,2155,2713,2632,29977,2868,29978,2856,2714,2838,2479,2439]} 1. d4 {[%emt 0:00:07]} Nf6 {[%emt 0:00:08]} 2. Bg5 {[%emt 0:00:13]} c5 {[%emt 0:00:28]} 3. d5 {[%emt 0:00:36]} Qb6 {[%emt 0:00:46]} 4. Nc3 {[%emt 0:00:28]} Qxb2 {[%emt 0:06:02]} 5. Bd2 {[%emt 0:00:07]} Qb6 {[%emt 0:00:43]} 6. e4 {[%emt 0:00:42]} d6 {[%emt 0:00:17]} 7. f4 {[%emt 0:01:39]} e6 {[%emt 0:06:53] 7...g6 gains popularity.} 8. Bc4 {[%emt 0:12:29] A45: Trompowsky Attack.} exd5 {[%emt 0:03:28]} 9. Nxd5 {[%emt 0:00:30]} Nxd5 {[%emt 0:00:09]} 10. Bxd5 {[%emt 0:00:52] Black is slightly better.} Be7 {[%emt 0:00:16]} 11. Nf3 {[%emt 0:08:01]} Nc6 {[%emt 0:01:39]} 12. Bc3 {[%emt 0:01:59]} (12. O-O $11) 12... O-O {[%emt 0:00:25]} 13. O-O {[%emt 0:04:09] [#]} Qc7 $146 {[%emt 0:20:03]} (13... Nb4 $1 $15) ({Predecessor:} 13... Qd8 14. Rb1 Bf6 15. e5 dxe5 16. fxe5 Be7 17. a3 Qc7 18. Qd3 Be6 19. Bxe6 fxe6 {0-1 (41) Stefanova,A (2492)-Munguntuul,B (2261) Sochi 2007}) 14. Qe1 $14 {[%emt 0:09:08] aiming for Qg3.} Bf6 {[%emt 0:17:54]} (14... Nb4 $11 {keeps the balance.}) 15. Bxf6 $16 {[%emt 0:01:09]} gxf6 {[%emt 0:00:01]} 16. Qh4 $40 {[%emt 0:05:24][%cal Of3g5][%mdl 128] And now Ng5! would win. White has strong attack. White is more active.} Nb4 $2 {[%emt 0:03:10][%mdl 8192] [#] This move loses the game for Black.} (16... Kg7 $16 17. f5 Qe7) 17. Ng5 $1 $18 {[%emt 0:03:47][%mdl 512]} fxg5 {[%emt 0:00:16]} (17... Rd8 18. Bxf7+) 18. Qxg5+ {[%emt 0:00:08]} Kh8 {[%emt 0:00:15]} 19. Qf6+ {[%emt 0:00:06]} Kg8 {[%emt 0:00:32]} 20. Rf3 {[%emt 0:00:19]} Re8 {[%emt 0:00:15]} 21. Rg3+ {[%emt 0:05:38]} (21. Qh6 $142 Qd7 22. f5 Qxf5 23. exf5 Bxf5 24. Rxf5 Re6 25. Bxe6 fxe6 26. Qxe6+ Kh8 27. Qf6+ Kg8 28. Rg5#) 21... Kf8 {[%emt 0:00:28]} 22. Re1 {[%emt 0:14:29] Threatens to win with Qh6+.} Be6 {[%emt 0:10:11]} 23. Bxe6 {[%emt 0:04:13]} (23. f5 $142 Bc8 24. Qh6+ Ke7 {[#]} 25. Bxf7 $1 {[%mdl 512]}) 23... Rxe6 {[%emt 0:00:39]} 24. Qh8+ {[%emt 0:00:09][%mdl 64] Skewer, Double Attack} Ke7 {[%emt 0:00:07]} 25. Qxa8 {[%emt 0:00:03]} Nxc2 {[%emt 0:00:18]} (25... Qd8 $142 26. Qxa7 Kf8) 26. Rb1 {[%emt 0:02:59]} b6 {[%emt 0:00:24]} 27. f5 {[%emt 0:02:55]} Re5 {[%emt 0:00:42]} 28. Rg8 {[%emt 0:00:53]} (28. f6+ $142 Kxf6 29. Rf1+ Ke6 30. Rg8 f5 31. exf5+ Kd7 32. f6 Ke6 33. Rg7) 28... Kf6 {[%emt 0:03:36]} 29. g4 {[%emt 0:00:54] Intending g5+ and mate.} h6 {[%emt 0:00:18] Inhibits g5+.} 30. h4 {[%emt 0:00:35][%cal Bh2h4,Bh4g5][%mdl 32] White wants to mate with g5+.} d5 {[%emt 0:02:18]} 31. g5+ {[%emt 0:00:22]} hxg5 {[%emt 0:00:01]} 32. hxg5+ {[%emt 0:00:07]} Ke7 {[%emt 0:00:05]} 33. Qf8+ {[%emt 0:03:56]} (33. g6 $142 Kf6 34. gxf7 Qxf7 35. Rf8 dxe4 36. Rxf7+ Kxf7 37. Qxa7+ Kf6 38. Qxb6+ Ke7 39. Qc7+ Kf6 40. Qd6+ Kg5 41. Qg6+ Kf4 42. Rf1+ Ke3 43. Qg3+ Kd2 44. Rf2+ Kc1 45. Qb3 Ne1 46. Qe3+ Kd1 47. Qd2#) 33... Kd7 {[%emt 0:00:27]} 34. Qxf7+ {[%emt 0:00:39]} Kc6 {[%emt 0:00:23]} 35. Qf6+ {[%emt 0:01:24] Weighted Error Value: White=0.74/Black=1.47} 1-0

[Event "34th GER-ch Seniors-65 2022"]
[Site "Magdeburg"]
[Date "2022.08.14"]
[Round "3.8"]
[White "Gruzmann, Boris"]
[Black "Gries, Volker"]
[Result "1/2-1/2"]
[ECO "C42"]
[WhiteElo "2173"]
[BlackElo "2050"]
[Annotator "TA"]
[PlyCount "113"]
[EventDate "2022.08.12"]
[EventType "swiss"]
[EventCountry "GER"]
[SourceTitle "playchess.com"]
[Source "ChessBase"]
[SourceQuality "1"]
[TimeControl "40/5400+30:1800+30"]

{[%evp 13,113,34,41,35,39,26,50,12,10,16,23,18,15,12,16,0,0,3,2,0,17,11,17,13,13,9,43,42,46,27,93,43,43,39,46,22,50,47,103,93,95,64,68,68,85,66,79,50,95,96,92,99,133,28,135,149,135,121,136,23,30,34,35,0,0,0,9,0,2,5,14,12,36,0,0,0,186,178,386,370,229,0,0,0,313,297,0,75,0,0,0,0,0,0,0,0,0,0,0,0,0,0]} 1. e4 {[%emt 0:00:07]} e5 {[%emt 0:00:21]} 2. Nf3 {[%emt 0:00:13]} Nf6 {[%emt 0:00:05]} 3. Nxe5 {[%emt 0:00:30]} d6 {[%emt 0:00:11]} 4. Nf3 {[%emt 0:00:14]} Nxe4 {[%emt 0:00:13]} 5. Nc3 {[%emt 0:00:21]} Nf6 {[%emt 0:01:32]} 6. d4 {[%emt 0:00:58]} Be7 {[%emt 0:00:52]} 7. Bd3 {[%emt 0:01:03]} O-O {[%emt 0:01:29]} 8. h3 {[%emt 0:05:05] 8.0-0 is the modern continuation. C42: Petroff Defence: 3 Nxe5 and unusual White 3rd moves.} d5 {[%emt 0:07:34]} 9. O-O {[%emt 0:00:49]} h6 {[%emt 0:02:03]} 10. Ne5 {[%emt 0:03:29] White is slightly better.} c5 {[%emt 0:04:08]} 11. dxc5 {[%emt 0:02:50]} Bxc5 {[%emt 0:00:06]} 12. Bf4 {[%emt 0:02:00]} Nc6 {[%emt 0:00:20] [#]} 13. a3 $146 {[%emt 0:12:06]} ({Predecessor:} 13. Nxc6 bxc6 14. Qf3 Bd6 15. Rad1 {½-½ (14) Kabos,T (2273)-Saiboulatov,D (2373) Belgium 2017}) 13... Re8 {[%emt 0:05:00]} 14. Nxc6 {[%emt 0:04:53]} bxc6 {[%emt 0:00:05]} 15. Qf3 {[%emt 0:01:49]} Bd6 {[%emt 0:01:58]} 16. Rfe1 {[%emt 0:04:23]} Bxf4 {[%emt 0:01:29]} 17. Qxf4 {[%emt 0:00:12]} Bd7 {[%emt 0:08:30]} 18. Na4 {[%emt 0:02:48]} Qa5 {[%emt 0:02:08]} 19. Qb4 {[%emt 0:07:57]} Qc7 {[%emt 0:03:50]} 20. Nc5 {[%emt 0:04:58]} Be6 {[%emt 0:04:21]} 21. Re2 {[%emt 0:01:01]} Nd7 {[%emt 0:00:10]} (21... a5 $11 {remains equal.} 22. Qd4 Nd7) 22. Na6 {[%emt 0:08:27]} ({Better is} 22. Nxe6 $16 fxe6 23. Bg6) 22... Qd8 $14 {[%emt 0:08:24]} 23. Qd6 {[%emt 0:01:09]} Rc8 {[%emt 0:00:20] Prevents Nc7.} 24. Rae1 {[%emt 0:03:01]} Nf8 {[%emt 0:09:51]} (24... c5 {seems wilder.} 25. b4 cxb4 26. axb4 Qb6) 25. Qxd8 {[%emt 0:07:17]} Rexd8 {[%emt 0:00:28]} (25... Rcxd8 $14 26. Nc5 Bd7) 26. Nc5 $16 {[%emt 0:00:56]} g5 {[%emt 0:02:13]} 27. h4 {[%emt 0:03:14]} Kg7 {[%emt 0:00:26]} 28. hxg5 {[%emt 0:02:14]} hxg5 {[%emt 0:00:07]} 29. f3 {[%emt 0:03:46]} Rc7 {[%emt 0:01:26]} 30. g3 {[%emt 0:01:57]} Rd6 {[%emt 0:02:44]} 31. Kf2 {[%emt 0:00:52]} Kf6 {[%emt 0:01:54]} 32. Rh1 {[%emt 0:04:36]} Bf5 {[%emt 0:06:21]} 33. Rh6+ {[%emt 0:05:48]} (33. Bxf5 $16 Kxf5 34. Re8) 33... Ng6 {[%emt 0:01:41]} (33... Bg6 $1 $11) 34. Bxf5 {[%emt 0:00:21]} Kxf5 {[%emt 0:00:01]} 35. Re8 {[%emt 0:00:40] Inhibits Rd8.} Kf6 {[%emt 0:03:25]} 36. Ke3 {[%emt 0:01:23] 0x0.0024dd944e23dp-1022s more active pieces.} (36. Rg8 $16) 36... Re7+ $11 {[%emt 0:01:42]} 37. Rxe7 {[%emt 0:00:09]} Kxe7 {[%emt 0:00:02][%mdl 4096] Endgame KRN-KRN} 38. Kd4 {[%emt 0:00:21] Against Ne5} (38. Rh5 $5 {[%cal Rh5g5]}) 38... Rf6 {[%emt 0:00:30]} 39. Ke3 {[%emt 0:01:16]} Ne5 {[%emt 0:05:42][%csl LRf3,LRh6]} 40. Rxf6 {[%emt 0:00:11]} Nc4+ {[%emt 0:00:07]} 41. Kd4 {[%emt 0:30:45]} Kxf6 {[%emt 0:31:15] KN-KN} 42. Nd3 {[%emt 0:01:42] Threatens to win with Kc5.} Nd2 {[%emt 0:03:05]} 43. Kc5 {[%emt 0:02:05]} (43. f4 $5 {[%cal Rf4g5]}) 43... Nxf3 {[%emt 0:00:11]} 44. Kxc6 {[%emt 0:00:49]} Nd4+ $2 {[%emt 0:11:33] [#]} (44... Ke6 $11) 45. Kb7 $1 $18 {[%emt 0:00:00]} ({Not} 45. Kxd5 Nxc2 46. Ke4 Na1 $14) 45... Nxc2 $2 {[%emt 0:00:00]} (45... Ke6) 46. Kxa7 {[%emt 0:00:00]} Kf5 {[%emt 0:00:00] [#]} 47. a4 $2 {[%emt 0:00:00]} (47. Nf2 $1 $18) 47... Ke4 $11 {[%emt 0:00:00]} 48. Nc5+ {[%emt 0:00:00]} Kd4 $2 {[%emt 0:00:00][%mdl 8192]} (48... Ke3 $1 $11 {and Black has nothing to worry.}) 49. Kb6 $18 {[%emt 0:00:00]} Kc4 {[%emt 0:00:00]} 50. a5 {[%emt 0:00:00]} Nb4 {[%emt 0:00:00]} 51. b3+ {[%emt 0:00:00] The position is equal.} Kc3 $1 {[%emt 0:00:00]} 52. a6 {[%emt 0:00:00]} Nxa6 {[%emt 0:00:00]} 53. Kxa6 {[%emt 0:00:00] Black must now prevent g4.} f5 {[%emt 0:00:00] aiming for ...f4.} 54. Ne6 {[%emt 0:04:23] Prevents f4.} f4 {[%emt 0:00:00]} 55. gxf4 {[%emt 0:00:17]} gxf4 {[%emt 0:00:00] ...f3 is the strong threat.} 56. Nxf4 {[%emt 0:00:14]} Kxb3 {[%emt 0:00:00]} 57. Nxd5 {[%emt 0:03:21] Weighted Error Value: White=0.20 (precise) /Black=0.29 (precise)} 1/2-1/2

[Event "34th GER-ch Seniors-65 2022"]
[Site "Magdeburg"]
[Date "2022.08.14"]
[Round "3.9"]
[White "Blab, Ludwig"]
[Black "Namyslo, Holger"]
[Result "1/2-1/2"]
[ECO "D35"]
[WhiteElo "2033"]
[BlackElo "2168"]
[Annotator "TA"]
[PlyCount "94"]
[EventDate "2022.08.12"]
[EventType "swiss"]
[EventCountry "GER"]
[SourceTitle "playchess.com"]
[Source "ChessBase"]
[SourceQuality "1"]
[TimeControl "40/5400+30:1800+30"]

{[%evp 15,94,0,53,4,10,16,16,10,19,-9,7,0,0,0,0,0,0,0,0,0,0,0,32,-14,0,-21,-17,-21,0,0,4,-12,-21,-14,-20,-25,-18,-28,-18,-19,-26,-20,-27,-28,-31,-6,0,0,0,0,0,-3,-3,-5,10,0,8,7,7,0,0,0,0,-22,-27,-32,-26,-26,-33,-23,-27,-27,-27,-27,-15,-16,0,0,0,0,0]} 1. c4 {[%emt 0:00:03]} e6 {[%emt 0:00:06]} 2. d4 {[%emt 0:00:10]} d5 {[%emt 0:00:05]} 3. Nc3 {[%emt 0:00:46]} c6 {[%emt 0:00:16]} 4. Nf3 {[%emt 0:00:32]} Nf6 {[%emt 0:00:16]} 5. cxd5 {[%emt 0:02:28]} exd5 {[%emt 0:01:08]} 6. Bg5 {[%emt 0:01:03]} Be7 {[%emt 0:00:12]} 7. e3 {[%emt 0:00:26]} Bf5 {[%emt 0:05:55]} 8. Bd3 {[%emt 0:01:36]} Ne4 {[%emt 0:03:06]} ({Better is} 8... Bxd3 $11 9. Qxd3 Nbd7) 9. Bxe7 {[%emt 0:01:54] D35: Queen's Gambit Declined: Exchange Variation.} (9. Bf4 $14 {feels stronger.}) 9... Qxe7 $11 {[%emt 0:00:06]} 10. Qc2 {[%emt 0:01:11]} Nd7 {[%emt 0:00:49]} 11. Nd2 {[%emt 0:01:45][%cal Rd2e4]} Ndf6 {[%emt 0:00:56][%cal Oe4f2] [#]} 12. Nb3 $146 {[%emt 0:08:11]} ({Predecessor:} 12. O-O O-O 13. Rfe1 Rfe8 14. f3 Nxd2 15. Qxd2 Bxd3 16. Qxd3 Rad8 17. a3 Rd6 18. Re2 {½-½ (43) Bayramov,Z (2333)-Ten Hertog,H (2503) Lisbon 2020}) 12... Bg6 {[%emt 0:01:58][%cal Oe4f2]} 13. O-O {[%emt 0:02:14]} O-O {[%emt 0:03:56]} 14. Rae1 {[%emt 0:05:04]} Rfe8 {[%emt 0:04:45]} 15. f3 {[%emt 0:00:54]} Nxc3 {[%emt 0:01:49]} 16. bxc3 {[%emt 0:00:23]} Bxd3 {[%emt 0:04:40]} 17. Qxd3 {[%emt 0:00:12][%cal Oe3e4]} Qa3 {[%emt 0:02:27]} 18. c4 {[%emt 0:04:43]} Qa6 {[%emt 0:07:52]} (18... Qxa2 $2 19. Ra1 Qb2 20. Rfb1 dxc4 21. Qxc4 $18) 19. Nd2 {[%emt 0:00:37]} (19. Nc5 $1 $14 Qxa2 20. Ra1 (20. cxd5 b6 $15)) 19... Rad8 {[%emt 0:02:47]} (19... Qxa2 $2 20. Ra1 Rxe3 21. Qxe3 $18 (21. Rxa2 $2 {loses.} Rxd3 22. Rb1 b6 $19)) 20. Qb3 {[%emt 0:01:32]} Qa5 {[%emt 0:06:23]} 21. Qd3 {[%emt 0:06:45]} dxc4 {[%emt 0:03:48]} (21... Qxa2 $2 22. Ra1 Qb2 23. Rfb1 Qxa1 24. Rxa1 $18) 22. Nxc4 {[%emt 0:00:37]} Qd5 {[%emt 0:00:56]} (22... Qxa2 $2 23. Ra1 Qxa1 24. Rxa1 $18) 23. Qc2 {[%emt 0:03:57]} c5 {[%emt 0:01:11]} 24. Rd1 {[%emt 0:01:09]} cxd4 {[%emt 0:02:14]} (24... Qg5 {is interesting.} 25. f4 Qh5 26. Ne5 cxd4 27. Rxd4 Ng4) 25. Rxd4 {[%emt 0:04:21]} Qc5 {[%emt 0:01:42]} 26. Qd3 {[%emt 0:03:25]} Rxd4 {[%emt 0:01:42]} (26... Rd5 {is more complex.} 27. Rd1 Red8 28. Kf2 Rxd4 29. exd4 Qc7) 27. Qxd4 {[%emt 0:02:40]} Qxd4 {[%emt 0:08:10]} 28. exd4 {[%emt 0:00:15][%mdl 4096] Endgame KRN-KRN} Rd8 {[%emt 0:00:20]} 29. Rd1 {[%emt 0:00:58]} Nd5 {[%emt 0:00:40]} 30. Kf2 {[%emt 0:00:24]} f6 {[%emt 0:01:15]} 31. Ne3 {[%emt 0:01:38]} Kf7 {[%emt 0:00:50]} 32. Rc1 {[%emt 0:00:33]} Ke6 {[%emt 0:00:17]} 33. Nxd5 {[%emt 0:02:25]} Rxd5 {[%emt 0:00:08] KR-KR} 34. Ke3 {[%emt 0:00:28]} Rd7 {[%emt 0:02:00]} 35. Ke4 {[%emt 0:03:21]} f5+ {[%emt 0:01:10]} 36. Kd3 {[%emt 0:00:09]} Kd6 {[%emt 0:00:44]} 37. g3 {[%emt 0:04:45]} Rc7 {[%emt 0:00:49]} 38. Re1 {[%emt 0:00:55]} g6 {[%emt 0:00:24]} 39. f4 {[%emt 0:00:40]} b5 {[%emt 0:02:57][%cal Bb7b5,Bb5b4][%mdl 32]} 40. Re8 {[%emt 0:10:47]} b4 {[%emt 0:07:10] Threatens to win with ...Rc3+.} 41. Rd8+ {[%emt 0:31:40]} Ke7 {[%emt 0:31:41]} 42. Ra8 {[%emt 0:03:27]} Rc3+ {[%emt 0:00:28]} 43. Kd2 {[%emt 0:00:03]} Ra3 {[%emt 0:00:05] [#] aiming for ...a5.} 44. Kc2 {[%emt 0:00:59]} Ke6 {[%emt 0:03:25]} 45. Kb2 {[%emt 0:00:50] The position is equal.} h6 {[%emt 0:10:28]} 46. Rb8 {[%emt 0:00:59]} a5 {[%emt 0:00:58]} 47. Rb6+ {[%emt 0:00:20]} Kf7 {[%emt 0:05:57] A rather calm draw.  Weighted Error Value: White=0.06 (flawless) /Black=0.07 (flawless)} 1/2-1/2

[Event "34th GER-ch Seniors-65 2022"]
[Site "Magdeburg"]
[Date "2022.08.14"]
[Round "3.10"]
[White "Schulz, Wolfgang"]
[Black "Beilfuss, Wilfried"]
[Result "0-1"]
[ECO "B32"]
[WhiteElo "2093"]
[BlackElo "2154"]
[Annotator "TA"]
[PlyCount "62"]
[EventDate "2022.08.12"]
[EventType "swiss"]
[EventCountry "GER"]
[SourceTitle "playchess.com"]
[Source "ChessBase"]
[SourceQuality "1"]
[TimeControl "40/5400+30:1800+30"]

{[%evp 11,62,33,41,12,34,18,32,26,32,27,26,10,12,0,9,-2,0,-10,0,0,0,-131,-129,-135,-120,-133,-140,-136,-127,-166,-136,-539,-527,-639,-628,-1188,-1174,-1070,-1058,-1491,-1489,-1489,-1483,-1482,-1458,-1729,-1589,-5851,-1150,-1112,-1012,-29992,-29991]} 1. e4 {[%emt 0:00:30]} c5 {[%emt 0:00:30]} 2. d4 {[%emt 0:00:30]} cxd4 {[%emt 0:00:30]} 3. Nf3 {[%emt 0:00:30]} Nc6 {[%emt 0:00:30]} 4. Nxd4 {[%emt 0:00:30]} Qb6 {[%emt 0:00:30]} 5. Nb5 {[%emt 0:01:22]} a6 {[%emt 0:02:18]} 6. Be3 {[%emt 0:00:26]} Qd8 {[%emt 0:00:22]} 7. N5a3 {[%emt 0:03:23] B32: Sicilian: Löwenthal and Kalashnikov Variations.} (7. N5c3 $5 {[%cal Rc3d5]} e6 8. g3 $11) 7... b5 {[%emt 0:04:14][%cal Bb7b5,Bb5b4][%mdl 32] Prevents Nc4.} 8. c4 {[%emt 0:02:56]} b4 {[%emt 0:01:30]} 9. Nc2 {[%emt 0:00:08] White is slightly better.} Nf6 {[%emt 0:01:45]} 10. Nd2 {[%emt 0:03:33] [#]} e6 $146 {[%emt 0:03:54]} ({Predecessor:} 10... Bb7 11. f4 d6 12. Qf3 g6 13. O-O-O Bg7 14. e5 dxe5 15. fxe5 Nd7 16. e6 fxe6 {½-½ (35) Gurevich,I (2510)-Polgar,J (2575) New York 1992}) 11. f4 {[%emt 0:01:58]} d6 {[%emt 0:03:04] Prevents e5.} 12. Qf3 {[%emt 0:07:00][%cal Oe4e5]} Qc7 {[%emt 0:03:12]} 13. Bd3 {[%emt 0:05:10]} Be7 {[%emt 0:04:58]} 14. O-O {[%emt 0:04:13]} O-O {[%emt 0:02:41]} 15. g4 {[%emt 0:02:27]} Nd7 {[%emt 0:03:03]} 16. Nd4 {[%emt 0:06:53] [#]} (16. Qh3 $11 {remains equal.}) 16... Nxd4 $1 $17 {[%emt 0:01:59]} 17. Bxd4 {[%emt 0:00:19] [#]} e5 $1 {[%emt 0:00:15]} 18. Be3 {[%emt 0:01:43]} exf4 {[%emt 0:00:16]} 19. Qxf4 {[%emt 0:02:24]} Bf6 {[%emt 0:04:27]} 20. e5 {[%emt 0:11:41]} Nxe5 {[%emt 0:06:01]} 21. Bxh7+ {[%emt 0:02:13][%mdl 8192] White does not recover from this.} (21. Be4 $17 {is tougher.} Ng6 22. Qf3) 21... Kxh7 $19 {[%emt 0:00:23]} 22. Qe4+ {[%emt 0:00:18]} Kg8 {[%emt 0:00:20] White must now prevent ...Bb7.} 23. Qxa8 {[%emt 0:00:21]} Bb7 {[%emt 0:00:58] Against Qg2} 24. Qa7 {[%emt 0:03:24]} Qc6 {[%emt 0:00:44][%csl Gb7][%cal Rc6g2]} 25. Kf2 {[%emt 0:00:33]} Qg2+ {[%emt 0:16:42]} 26. Ke1 {[%emt 0:00:05]} Nd3+ {[%emt 0:01:25][%cal Be5d3,Bd3b2,Bb2c4][%mdl 32]} 27. Kd1 {[%emt 0:00:22]} Nxb2+ {[%emt 0:00:57]} 28. Kc2 {[%emt 0:02:02]} Nxc4 {[%emt 0:03:25]} 29. Rxf6 {[%emt 0:04:50]} gxf6 {[%emt 0:00:42]} (29... Rc8 $142 30. Bf2 Na3+ 31. Kd3 gxf6) 30. Qd4 {[%emt 0:01:20]} Rc8 {[%emt 0:02:06] ( -> ...Nxd2+)} 31. Kd1 {[%emt 0:07:16]} Bf3+ {[%emt 0:02:45] Weighted Error Value: White=1.54/Black=0.20 (precise)} 0-1

[Event "34th GER-ch Seniors-65 2022"]
[Site "Magdeburg"]
[Date "2022.08.14"]
[Round "3.11"]
[White "Braun, Gottfried"]
[Black "Pueschel, Werner"]
[Result "1-0"]
[ECO "B22"]
[WhiteElo "2143"]
[BlackElo "2034"]
[Annotator "TA"]
[PlyCount "83"]
[EventDate "2022.08.12"]
[EventType "swiss"]
[EventCountry "GER"]
[SourceTitle "playchess.com"]
[Source "ChessBase"]
[SourceQuality "1"]
[TimeControl "40/5400+30:1800+30"]

{[%evp 17,83,0,47,57,31,21,31,0,0,0,35,0,40,32,38,0,0,13,20,0,0,13,33,0,0,-21,-24,-17,-20,-27,-23,-24,-18,-16,0,0,47,23,52,35,66,0,0,0,0,0,0,0,0,0,0,0,18,12,11,6,25,23,709,695,29987,29988,29994,29995,29996,29997,29997,29998]} 1. e4 {[%emt 0:00:04][%cal Be2e4,Be4e5][%mdl 32]} c5 {[%emt 0:05:44]} 2. c3 {[%emt 0:00:09]} Nf6 {[%emt 0:00:10]} 3. e5 {[%emt 0:00:11]} Nd5 {[%emt 0:00:06]} 4. d4 {[%emt 0:00:13]} cxd4 {[%emt 0:00:05]} 5. Nf3 {[%emt 0:00:17]} e6 {[%emt 0:00:07]} 6. cxd4 {[%emt 0:00:13]} b6 {[%emt 0:00:08]} 7. Nc3 {[%emt 0:00:54]} Nxc3 {[%emt 0:00:12]} 8. bxc3 {[%emt 0:00:08]} Bb7 {[%emt 0:00:15][%cal Bc8b7,Bb7d5,Bd5c4][%mdl 32]} 9. Bd3 {[%emt 0:00:36]} Be7 {[%emt 0:00:10]} (9... Qc7 $11 {is more appropriate.} 10. Bd2 d6) 10. O-O $14 {[%emt 0:00:38] B22: Sicilian: 2 c3.} Nc6 {[%emt 0:00:11]} 11. Re1 {[%emt 0:01:26]} Na5 {[%emt 0:00:23]} 12. Bf4 {[%emt 0:02:28] White is slightly better.} Rc8 $1 {[%emt 0:01:12]} 13. Rc1 {[%emt 0:00:34]} Bd5 {[%emt 0:00:12] [#] Inhibits c4.} 14. Rc2 $146 {[%emt 0:06:02]} ({Predecessor:} 14. Nd2 Nc4 15. Qg4 Kf8 16. Bxc4 Bxc4 17. Ne4 Bd3 18. Nd6 Bxd6 19. exd6 Bc4 20. h4 {1-0 (37) Suran,J (2180)-Havranek,M (2340) Czech Republic 1994}) 14... Rc7 {[%emt 0:03:48]} 15. Nd2 {[%emt 0:03:22]} Qc8 {[%emt 0:08:17]} 16. Qc1 {[%emt 0:05:24]} (16. c4 $5 Nxc4 17. Bxc4 Bxc4 18. Qg4 $14) 16... Nc4 {[%emt 0:01:17]} 17. Nxc4 {[%emt 0:01:17]} Bxc4 {[%emt 0:00:09]} 18. Be4 {[%emt 0:00:24]} Qa6 {[%emt 0:01:01]} 19. Qe3 {[%emt 0:01:54]} h6 {[%emt 0:07:03]} 20. Bg3 {[%emt 0:06:16]} Qa5 {[%emt 0:02:26]} 21. f4 {[%emt 0:05:16]} Bd5 {[%emt 0:00:43]} 22. Bxd5 {[%emt 0:12:13]} Qxd5 {[%emt 0:00:30]} 23. f5 {[%emt 0:02:10][%cal Of5f6]} Rc4 {[%emt 0:02:36]} 24. Rf1 {[%emt 0:03:37]} exf5 {[%emt 0:02:48]} 25. Rxf5 {[%emt 0:00:13]} Bg5 {[%emt 0:05:32]} 26. Qd3 {[%emt 0:02:18][%cal Oe5e6] [#] Threatens to win with e6!} g6 {[%emt 0:01:39]} (26... O-O $11) 27. Rf3 {[%emt 0:02:43]} h5 {[%emt 0:00:48]} 28. Rcf2 {[%emt 0:10:44] Strongly threatening h4.} O-O {[%emt 0:02:40]} 29. Bf4 {[%emt 0:04:06]} ({White should play} 29. h4 $14 Bh6 30. Bf4 Bxf4 31. Rxf4) 29... Bxf4 $11 {[%emt 0:01:31]} 30. Rxf4 {[%emt 0:00:07]} Rc6 {[%emt 0:01:22]} 31. R4f3 {[%emt 0:02:03]} b5 {[%emt 0:06:45]} 32. h3 {[%emt 0:03:28]} Re6 {[%emt 0:00:23]} 33. Qf1 {[%emt 0:01:03][%cal Rf3f7]} Rc6 {[%emt 0:04:21]} 34. Qd3 {[%emt 0:02:14]} a6 {[%emt 0:01:45]} 35. Qd2 {[%emt 0:01:47]} Kg7 {[%emt 0:01:08]} 36. Qg5 {[%emt 0:01:29]} Re6 {[%emt 0:01:17]} 37. g4 {[%emt 0:01:09]} hxg4 {[%emt 0:00:31][%mdl 8192] This move loses the game for Black.} (37... h4 $11) 38. hxg4 $18 {[%emt 0:00:17][%cal Of2h2] [#] White wants to mate with Rh2!} d6 {[%emt 0:00:24][%cal Rd6e5]} 39. Rh3 {[%emt 0:01:13] White mates.} Rh8 {[%emt 0:00:47]} 40. Rxh8 {[%emt 0:00:32]} Kxh8 {[%emt 0:00:08]} 41. Rh2+ {[%emt 0:32:22]} Kg8 {[%emt 0:30:42]} 42. Qd8+ {[%emt 0:00:10] Weighted Error Value: White=0.11 (very precise) /Black=0.26 (precise)} 1-0

[Event "34th GER-ch Seniors-65 2022"]
[Site "Magdeburg"]
[Date "2022.08.14"]
[Round "3.12"]
[White "Knaak, Joachim"]
[Black "Ehlert, Horst"]
[Result "1/2-1/2"]
[ECO "D02"]
[WhiteElo "2142"]
[BlackElo "2011"]
[Annotator "TA"]
[PlyCount "36"]
[EventDate "2022.08.12"]
[EventType "swiss"]
[EventCountry "GER"]
[SourceTitle "playchess.com"]
[Source "ChessBase"]
[SourceQuality "1"]
[TimeControl "40/5400+30:1800+30"]

{[%evp 9,36,0,0,0,-8,-50,-14,-23,0,0,6,0,2,0,15,15,28,0,16,14,30,21,28,-14,0,0,0,-189,-87]} 1. d4 {[%emt 0:00:03]} d5 {[%emt 0:02:08]} 2. Bf4 {[%emt 0:00:23]} Nf6 {[%emt 0:01:59]} 3. e3 {[%emt 0:00:22]} c5 {[%emt 0:00:36]} 4. Nf3 {[%emt 0:00:48]} Nc6 {[%emt 0:00:44]} 5. c3 {[%emt 0:01:43]} Qb6 {[%emt 0:05:26]} 6. b3 {[%emt 0:08:10] D02: 1 d4 d5 2 Nf3 sidelines, including 2...Nf6 3 g3 and 2...Nf6 3 Bf4.} Bg4 {[%emt 0:02:16] next ...cxd4 is good for Black.} 7. Nbd2 {[%emt 0:01:45]} e6 {[%emt 0:00:48]} 8. Bd3 {[%emt 0:02:49] The position is equal.} Be7 {[%emt 0:00:44]} 9. O-O {[%emt 0:00:23]} O-O {[%emt 0:00:20]} 10. h3 {[%emt 0:13:33]} Bh5 {[%emt 0:01:46]} 11. Qe2 {[%emt 0:01:19]} cxd4 {[%emt 0:18:02]} 12. exd4 {[%emt 0:07:16]} Rac8 {[%emt 0:01:41]} 13. Rac1 {[%emt 0:04:31] [#]} a6 $146 {[%emt 0:08:33]} ({Predecessor:} 13... Rfe8 14. g4 Bg6 15. Ne5 Ba3 16. Rcd1 Nxe5 17. dxe5 Bxd3 18. Qxd3 Ne4 19. Nxe4 dxe4 {1-0 (40) Charaus,F (2115)-Hoegl,E (1990) Vienna 2018}) 14. Qe3 {[%emt 0:05:38]} Bg6 {[%emt 0:09:34]} 15. Bxg6 {[%emt 0:07:42]} hxg6 {[%emt 0:00:02]} 16. Ne5 {[%emt 0:10:02]} Ba3 {[%emt 0:11:58]} 17. Nxc6 {[%emt 0:32:33]} Rxc6 {[%emt 0:32:23]} 18. Ra1 {[%emt 0:00:30] [#]} (18. Rc2 $11 {and White has nothing to worry.}) 18... Rfc8 {Weighted Error Value: White=0.37/Black=0.11 (very precise)} (18... Bb2 $19 19. Rab1 Bxc3) 1/2-1/2